[Event "Titled Tuesday Blitz June 6 Early 2023"]
[White "Gheorghiu, Calin"]
[Black "kuanysh1981"]
[WhiteFideId "1200305"]
[WhiteElo "2204"]
[BlackElo "2452"]
[Result "0-1"]
[Round "9"]
[TimeControl "180+2"]
[Date "2023.06.06"]
[WhiteClock "0:00:06"]
[BlackClock "0:00:18"]
[Board "76"]

1. e4 {[%clk 0:02:48]}  c5 {[%clk 0:02:58]} 2. Nf3 {[%clk 0:02:47]}  e6 {[%clk 0:02:58]} 3. c3 {[%clk 0:02:46]}  Nf6 {[%clk 0:02:55]} 4. e5 {[%clk 0:02:45]}  Nd5 {[%clk 0:02:55]} 5. d4 {[%clk 0:02:45]}  cxd4 {[%clk 0:02:56]} 6. cxd4 {[%clk 0:02:45]}  d6 {[%clk 0:02:57]} 7. a3 {[%clk 0:02:40]}  Be7 {[%clk 0:02:53]} 8. Bd3 {[%clk 0:02:39]}  b6 {[%clk 0:02:50]} 9. O-O {[%clk 0:02:38]}  Bb7 {[%clk 0:02:49]} 10. Qe2 {[%clk 0:02:29]}  O-O {[%clk 0:02:47]} 11. Qe4 {[%clk 0:02:28]}  g6 {[%clk 0:02:43]} 12. Qg4 {[%clk 0:02:28]}  Nd7 {[%clk 0:02:40]} 13. h4 {[%clk 0:02:23]}  dxe5 {[%clk 0:02:38]} 14. dxe5 {[%clk 0:02:22]}  Nc5 {[%clk 0:02:37]} 15. Bc2 {[%clk 0:02:20]}  Nd7 {[%clk 0:01:59]} 16. h5 {[%clk 0:02:11]}  Rc8 {[%clk 0:01:48]} 17. Be4 {[%clk 0:01:53]}  Rc4 {[%clk 0:01:41]} 18. Nbd2 {[%clk 0:01:48]}  N5f6 {[%clk 0:01:22]} 19. exf6 {[%clk 0:01:39]}  Nxf6 {[%clk 0:01:23]} 20. Qh3 {[%clk 0:01:23]}  Rxe4 {[%clk 0:01:09]} 21. Nxe4 {[%clk 0:01:21]}  Bxe4 {[%clk 0:01:08]} 22. Bh6 {[%clk 0:01:18]}  Re8 {[%clk 0:01:06]} 23. Rfd1 {[%clk 0:01:17]}  Qa8 {[%clk 0:01:04]} 24. hxg6 {[%clk 0:01:15]}  hxg6 {[%clk 0:01:03]} 25. Ng5 {[%clk 0:01:05]}  Bf5 {[%clk 0:01:03]} 26. Qf3 {[%clk 0:01:03]}  Ng4 {[%clk 0:00:53]} 27. Qxa8 {[%clk 0:00:53]}  Rxa8 {[%clk 0:00:53]} 28. Rd7 {[%clk 0:00:53]}  Re8 {[%clk 0:00:48]} 29. Nxf7 {[%clk 0:00:45]}  Kxf7 {[%clk 0:00:45]} 30. Bg5 {[%clk 0:00:45]}  Kf8 {[%clk 0:00:45]} 31. Bxe7+ {[%clk 0:00:42]}  Rxe7 {[%clk 0:00:46]} 32. Rxe7 {[%clk 0:00:41]}  Kxe7 {[%clk 0:00:47]} 33. Rc1 {[%clk 0:00:41]}  Kd6 {[%clk 0:00:46]} 34. b4 {[%clk 0:00:37]}  Nf6 {[%clk 0:00:44]} 35. f3 {[%clk 0:00:37]}  Nd5 {[%clk 0:00:38]} 36. Kf2 {[%clk 0:00:37]}  e5 {[%clk 0:00:36]} 37. g4 {[%clk 0:00:37]}  Be6 {[%clk 0:00:36]} 38. Rh1 {[%clk 0:00:36]}  Nf4 {[%clk 0:00:35]} 39. Ke3 {[%clk 0:00:34]}  a5 {[%clk 0:00:30]} 40. bxa5 {[%clk 0:00:31]}  bxa5 {[%clk 0:00:31]} 41. Rh7 {[%clk 0:00:30]}  a4 {[%clk 0:00:24]} 42. Ra7 {[%clk 0:00:29]}  Bb3 {[%clk 0:00:24]} 43. Ra5 {[%clk 0:00:28]}  Bc2 {[%clk 0:00:23]} 44. Kd2 {[%clk 0:00:25]}  Bb3 {[%clk 0:00:22]} 45. Ke3 {[%clk 0:00:24]}  Nd5+ {[%clk 0:00:21]} 46. Kf2 {[%clk 0:00:21]}  Nf4 {[%clk 0:00:19]} 47. Kg3 {[%clk 0:00:19]}  Ke6 {[%clk 0:00:18]} 48. Kh4 {[%clk 0:00:19]}  Kf6 {[%clk 0:00:17]} 49. Ra6+ {[%clk 0:00:15]}  Ke7 {[%clk 0:00:16]} 50. Kg5 {[%clk 0:00:14]}  Bd1 {[%clk 0:00:17]} 51. Ra7+ {[%clk 0:00:12]}  Ke6 {[%clk 0:00:17]} 52. Ra6+ {[%clk 0:00:13]}  Kd5 {[%clk 0:00:17]} 53. Kf6 {[%clk 0:00:12]}  Kd4 {[%clk 0:00:16]} 54. Rd6+ {[%clk 0:00:10]}  Nd5+ {[%clk 0:00:16]} 55. Kxg6 {[%clk 0:00:11]}  Bxf3 {[%clk 0:00:17]} 56. Kf7 {[%clk 0:00:10]}  Bxg4 {[%clk 0:00:17]} 57. Ra6 {[%clk 0:00:10]}  Bd1 {[%clk 0:00:16]} 58. Ke6 {[%clk 0:00:09]}  Bb3 {[%clk 0:00:15]} 59. Kd6 {[%clk 0:00:08]}  e4 {[%clk 0:00:15]} 60. Ra8 {[%clk 0:00:06]}  e3 {[%clk 0:00:16]} 61. Re8 {[%clk 0:00:05]}  Kd3 {[%clk 0:00:15]} 62. Kc5 {[%clk 0:00:05]}  Kd2 {[%clk 0:00:14]} 63. Kd4 {[%clk 0:00:05]}  e2 {[%clk 0:00:15]} 64. Re5 {[%clk 0:00:05]}  e1=Q {[%clk 0:00:15]} 65. Rxe1 {[%clk 0:00:05]}  Kxe1 {[%clk 0:00:16]} 66. Kc5 {[%clk 0:00:06]}  Kd2 {[%clk 0:00:16]} 67. Kb5 {[%clk 0:00:06]}  Kc3 {[%clk 0:00:17]} 68. Kc5 {[%clk 0:00:06]}  Kb2 {[%clk 0:00:18]} 0-1


[Site "https://www.chess.com"]

[Event "Titled Tuesday Blitz June 6 Early 2023"]
[White "FunnyDuck66"]
[Black "Baches Garcia, Guillermo"]
[BlackFideId "2209764"]
[WhiteElo "2436"]
[BlackElo "2514"]
[Result "1/2-1/2"]
[Round "9"]
[TimeControl "180+2"]
[Date "2023.06.06"]
[WhiteClock "0:00:40"]
[BlackClock "0:00:38"]
[Board "82"]

1. d4 {[%clk 0:02:58]}  d5 {[%clk 0:03:00]} 2. c4 {[%clk 0:02:55]}  e6 {[%clk 0:02:59]} 3. Nc3 {[%clk 0:02:55]}  h6 {[%clk 0:02:59]} 4. cxd5 {[%clk 0:02:50]}  exd5 {[%clk 0:03:00]} 5. Bf4 {[%clk 0:02:51]}  c6 {[%clk 0:03:00]} 6. Qc2 {[%clk 0:02:49]}  Bd6 {[%clk 0:02:56]} 7. Bg3 {[%clk 0:02:46]}  Bxg3 {[%clk 0:02:52]} 8. hxg3 {[%clk 0:02:45]}  Nf6 {[%clk 0:02:52]} 9. e3 {[%clk 0:02:40]}  O-O {[%clk 0:02:50]} 10. Bd3 {[%clk 0:02:37]}  Ne8 {[%clk 0:02:38]} 11. Nf3 {[%clk 0:02:12]}  Nd6 {[%clk 0:02:30]} 12. Ne5 {[%clk 0:01:53]}  Nd7 {[%clk 0:02:28]} 13. O-O-O {[%clk 0:01:43]}  Qe7 {[%clk 0:02:14]} 14. f4 {[%clk 0:01:35]}  Nxe5 {[%clk 0:02:07]} 15. fxe5 {[%clk 0:01:34]}  Nc4 {[%clk 0:02:02]} 16. Bxc4 {[%clk 0:01:33]}  dxc4 {[%clk 0:02:03]} 17. Qf2 {[%clk 0:01:29]}  Be6 {[%clk 0:01:52]} 18. Qf4 {[%clk 0:01:16]}  f5 {[%clk 0:01:27]} 19. Qh4 {[%clk 0:01:01]}  Qf7 {[%clk 0:01:11]} 20. Rdf1 {[%clk 0:00:54]}  Qg6 {[%clk 0:00:59]} 21. Ne2 {[%clk 0:00:50]}  Qg4 {[%clk 0:00:53]} 22. Nf4 {[%clk 0:00:40]}  Bd5 {[%clk 0:00:38]} 1/2-1/2


[Site "https://www.chess.com"]

[Event "Titled Tuesday Blitz June 6 Early 2023"]
[White "Zheenbekov, Nurgazy"]
[Black "Manon-og, Ramon Jr."]
[WhiteFideId "13800485"]
[BlackFideId "5200776"]
[WhiteElo "1975"]
[BlackElo "2387"]
[Result "1-0"]
[Round "9"]
[TimeControl "180+2"]
[Date "2023.06.06"]
[WhiteClock "0:00:23"]
[BlackClock "0:00:49"]
[Board "85"]

1. e4 {[%clk 0:02:59]}  c5 {[%clk 0:02:59]} 2. Nf3 {[%clk 0:02:59]}  d6 {[%clk 0:02:59]} 3. Bb5+ {[%clk 0:02:59]}  Nd7 {[%clk 0:02:57]} 4. a4 {[%clk 0:02:58]}  Nf6 {[%clk 0:02:56]} 5. e5 {[%clk 0:02:53]}  dxe5 {[%clk 0:02:56]} 6. Nxe5 {[%clk 0:02:49]}  a6 {[%clk 0:02:55]} 7. Bxd7+ {[%clk 0:02:47]}  Nxd7 {[%clk 0:02:52]} 8. Nf3 {[%clk 0:02:39]}  e6 {[%clk 0:02:47]} 9. O-O {[%clk 0:02:38]}  Bd6 {[%clk 0:02:45]} 10. d4 {[%clk 0:02:35]}  cxd4 {[%clk 0:02:45]} 11. Qxd4 {[%clk 0:02:34]}  Nf6 {[%clk 0:02:43]} 12. Nc3 {[%clk 0:02:33]}  O-O {[%clk 0:02:43]} 13. Bg5 {[%clk 0:02:32]}  Be7 {[%clk 0:02:43]} 14. Rad1 {[%clk 0:02:21]}  Qc7 {[%clk 0:02:37]} 15. Bf4 {[%clk 0:02:01]}  Qc5 {[%clk 0:02:29]} 16. Bd6 {[%clk 0:01:41]}  Bxd6 {[%clk 0:02:25]} 17. Qxd6 {[%clk 0:01:40]}  Qf5 {[%clk 0:02:16]} 18. Ne5 {[%clk 0:01:26]}  Qxc2 {[%clk 0:02:14]} 19. Rd2 {[%clk 0:01:26]}  Qf5 {[%clk 0:02:06]} 20. Rfd1 {[%clk 0:01:22]}  h6 {[%clk 0:01:56]} 21. h3 {[%clk 0:01:15]}  Ne4 {[%clk 0:01:54]} 22. Nxe4 {[%clk 0:01:12]}  Qxe4 {[%clk 0:01:55]} 23. Rd4 {[%clk 0:01:05]}  Qc2 {[%clk 0:01:53]} 24. Qe7 {[%clk 0:00:49]}  Qf5 {[%clk 0:01:33]} 25. Rd8 {[%clk 0:00:49]}  Rxd8 {[%clk 0:01:31]} 26. Rxd8+ {[%clk 0:00:48]}  Kh7 {[%clk 0:01:31]} 27. Nxf7 {[%clk 0:00:46]}  Qb1+ {[%clk 0:01:17]} 28. Kh2 {[%clk 0:00:45]}  Qxb2 {[%clk 0:01:17]} 29. f4 {[%clk 0:00:34]}  Qf6 {[%clk 0:01:05]} 30. Rh8+ {[%clk 0:00:34]}  Kg6 {[%clk 0:01:02]} 31. Rxh6+ {[%clk 0:00:25]}  gxh6 {[%clk 0:00:57]} 32. Ne5+ {[%clk 0:00:23]}  Kf5 {[%clk 0:00:49]} 33. g4+ {[%clk 0:00:23]} 1-0


[Site "https://www.chess.com"]

[Event "Titled Tuesday Blitz June 6 Early 2023"]
[White "Pinheiro, Iung Alicio de O."]
[Black "Georg, Heinz"]
[WhiteFideId "2104350"]
[BlackFideId "4607295"]
[WhiteElo "2283"]
[BlackElo "2339"]
[Result "1-0"]
[Round "9"]
[TimeControl "180+2"]
[Date "2023.06.06"]
[WhiteClock "0:00:04"]
[BlackClock "0:00:02"]
[Board "86"]

1. d4 {[%clk 0:03:00]}  f5 {[%clk 0:02:59]} 2. b3 {[%clk 0:02:56]}  d5 {[%clk 0:02:57]} 3. h4 {[%clk 0:02:46]}  Nf6 {[%clk 0:02:57]} 4. Bf4 {[%clk 0:02:38]}  e6 {[%clk 0:02:56]} 5. e3 {[%clk 0:02:36]}  Bd6 {[%clk 0:02:56]} 6. Nh3 {[%clk 0:02:34]}  O-O {[%clk 0:02:55]} 7. c3 {[%clk 0:02:30]}  Nc6 {[%clk 0:02:55]} 8. Bxd6 {[%clk 0:01:36]}  Qxd6 {[%clk 0:02:53]} 9. f4 {[%clk 0:01:33]}  Ne4 {[%clk 0:02:53]} 10. Bd3 {[%clk 0:01:32]}  Ng3 {[%clk 0:02:49]} 11. Rh2 {[%clk 0:01:25]}  Qe7 {[%clk 0:02:49]} 12. Ng5 {[%clk 0:01:23]}  h6 {[%clk 0:02:49]} 13. Nf3 {[%clk 0:01:23]}  Bd7 {[%clk 0:02:41]} 14. Nbd2 {[%clk 0:01:23]}  Nd8 {[%clk 0:02:15]} 15. Rh3 {[%clk 0:01:15]}  Ne4 {[%clk 0:02:15]} 16. Bxe4 {[%clk 0:01:09]}  fxe4 {[%clk 0:02:12]} 17. Ne5 {[%clk 0:01:10]}  Be8 {[%clk 0:02:06]} 18. h5 {[%clk 0:01:06]}  c5 {[%clk 0:02:05]} 19. Qg4 {[%clk 0:00:52]}  Nc6 {[%clk 0:02:00]} 20. Rg3 {[%clk 0:00:46]}  cxd4 {[%clk 0:01:49]} 21. exd4 {[%clk 0:00:40]}  Rf5 {[%clk 0:01:47]} 22. Rh3 {[%clk 0:00:37]}  Nxe5 {[%clk 0:01:42]} 23. dxe5 {[%clk 0:00:28]}  Qf7 {[%clk 0:01:41]} 24. g3 {[%clk 0:00:26]}  Rc8 {[%clk 0:01:29]} 25. Rc1 {[%clk 0:00:26]}  Rc6 {[%clk 0:01:15]} 26. Nf1 {[%clk 0:00:25]}  Rxh5 {[%clk 0:01:12]} 27. Rxh5 {[%clk 0:00:25]}  Qxh5 {[%clk 0:01:12]} 28. Qxh5 {[%clk 0:00:25]}  Bxh5 {[%clk 0:01:12]} 29. Kd2 {[%clk 0:00:26]}  g5 {[%clk 0:00:58]} 30. fxg5 {[%clk 0:00:25]}  hxg5 {[%clk 0:00:58]} 31. Ne3 {[%clk 0:00:26]}  Bf3 {[%clk 0:00:48]} 32. Nc2 {[%clk 0:00:23]}  Kf7 {[%clk 0:00:43]} 33. Nd4 {[%clk 0:00:24]}  Rc8 {[%clk 0:00:42]} 34. c4 {[%clk 0:00:20]}  dxc4 {[%clk 0:00:29]} 35. Nb5 {[%clk 0:00:20]}  Rh8 {[%clk 0:00:27]} 36. Nd6+ {[%clk 0:00:18]}  Ke7 {[%clk 0:00:27]} 37. Rxc4 {[%clk 0:00:18]}  Rh2+ {[%clk 0:00:26]} 38. Ke3 {[%clk 0:00:15]}  Re2+ {[%clk 0:00:26]} 39. Kd4 {[%clk 0:00:16]}  Rd2+ {[%clk 0:00:23]} 40. Ke3 {[%clk 0:00:16]}  Rd3+ {[%clk 0:00:22]} 41. Kf2 {[%clk 0:00:16]}  g4 {[%clk 0:00:12]} 42. Rc7+ {[%clk 0:00:15]}  Kd8 {[%clk 0:00:12]} 43. Rc8+ {[%clk 0:00:11]}  Kd7 {[%clk 0:00:11]} 44. Rc1 {[%clk 0:00:11]}  Rd2+ {[%clk 0:00:10]} 45. Ke3 {[%clk 0:00:10]}  Rxa2 {[%clk 0:00:07]} 46. Nxb7 {[%clk 0:00:10]}  Ra3 {[%clk 0:00:07]} 47. Kd4 {[%clk 0:00:08]}  e3 {[%clk 0:00:05]} 48. Nc5+ {[%clk 0:00:06]}  Ke7 {[%clk 0:00:05]} 49. Kxe3 {[%clk 0:00:07]}  a5 {[%clk 0:00:05]} 50. Kd4 {[%clk 0:00:07]}  a4 {[%clk 0:00:05]} 51. bxa4 {[%clk 0:00:07]}  Ra2 {[%clk 0:00:04]} 52. Rc3 {[%clk 0:00:03]}  Bd5 {[%clk 0:00:04]} 53. Nd3 {[%clk 0:00:02]}  Rg2 {[%clk 0:00:03]} 54. Nf4 {[%clk 0:00:02]}  Rd2+ {[%clk 0:00:02]} 55. Kc5 {[%clk 0:00:02]}  Ra2 {[%clk 0:00:02]} 56. Nxd5+ {[%clk 0:00:02]}  exd5 {[%clk 0:00:02]} 57. Kxd5 {[%clk 0:00:03]}  Rxa4 {[%clk 0:00:02]} 58. Rc7+ {[%clk 0:00:03]}  Kd8 {[%clk 0:00:02]} 59. Rg7 {[%clk 0:00:04]} 1-0


[Site "https://www.chess.com"]

[Event "Titled Tuesday Blitz June 6 Early 2023"]
[White "Arencibia Monduy, Antonio"]
[Black "Zaksaite, Salomeja"]
[WhiteFideId "3507939"]
[BlackFideId "12801496"]
[WhiteElo "2487"]
[BlackElo "2059"]
[Result "1-0"]
[Round "9"]
[TimeControl "180+2"]
[Date "2023.06.06"]
[WhiteClock "0:00:26"]
[BlackClock "0:00:02"]
[Board "89"]

1. e4 {[%clk 0:03:00]}  c5 {[%clk 0:02:59]} 2. Nf3 {[%clk 0:03:00]}  Nc6 {[%clk 0:03:00]} 3. c3 {[%clk 0:03:00]}  d5 {[%clk 0:02:59]} 4. exd5 {[%clk 0:03:01]}  Qxd5 {[%clk 0:03:00]} 5. d4 {[%clk 0:03:01]}  e6 {[%clk 0:02:59]} 6. Be2 {[%clk 0:03:02]}  Nf6 {[%clk 0:02:59]} 7. O-O {[%clk 0:03:02]}  Be7 {[%clk 0:02:57]} 8. Be3 {[%clk 0:03:02]}  cxd4 {[%clk 0:02:58]} 9. Nxd4 {[%clk 0:03:03]}  Nxd4 {[%clk 0:02:51]} 10. Bxd4 {[%clk 0:03:03]}  O-O {[%clk 0:02:46]} 11. Bf3 {[%clk 0:02:59]}  Qd8 {[%clk 0:02:41]} 12. Qb3 {[%clk 0:02:56]}  Nd5 {[%clk 0:01:43]} 13. Rd1 {[%clk 0:02:50]}  Qc7 {[%clk 0:01:38]} 14. Na3 {[%clk 0:02:29]}  Bxa3 {[%clk 0:01:29]} 15. Qxa3 {[%clk 0:02:29]}  Bd7 {[%clk 0:01:26]} 16. Rac1 {[%clk 0:02:18]}  Bc6 {[%clk 0:01:26]} 17. c4 {[%clk 0:01:44]}  Nf4 {[%clk 0:01:24]} 18. Qe3 {[%clk 0:01:37]}  Ng6 {[%clk 0:01:02]} 19. Bxc6 {[%clk 0:01:15]}  Qxc6 {[%clk 0:01:02]} 20. Bxa7 {[%clk 0:01:15]}  Nh4 {[%clk 0:00:14]} 21. f3 {[%clk 0:01:14]}  Nf5 {[%clk 0:00:11]} 22. Qf2 {[%clk 0:01:12]}  Qa6 {[%clk 0:00:05]} 23. Bc5 {[%clk 0:01:12]}  Rfc8 {[%clk 0:00:05]} 24. a3 {[%clk 0:01:07]}  b6 {[%clk 0:00:06]} 25. Bxb6 {[%clk 0:01:06]}  Rxc4 {[%clk 0:00:06]} 26. Rxc4 {[%clk 0:00:54]}  Qxc4 {[%clk 0:00:06]} 27. Qd2 {[%clk 0:00:49]}  h5 {[%clk 0:00:05]} 28. Rc1 {[%clk 0:00:41]}  Qb5 {[%clk 0:00:04]} 29. Bf2 {[%clk 0:00:40]}  h4 {[%clk 0:00:03]} 30. Rc5 {[%clk 0:00:31]}  Qb3 {[%clk 0:00:02]} 31. Qc2 {[%clk 0:00:31]}  Qa2 {[%clk 0:00:02]} 32. g4 {[%clk 0:00:26]}  hxg3 {[%clk 0:00:01]} 33. hxg3 {[%clk 0:00:27]}  Qa1+ {[%clk 0:00:02]} 34. Kg2 {[%clk 0:00:26]} 1-0


[Site "https://www.chess.com"]

[Event "Titled Tuesday Blitz June 6 Early 2023"]
[White "Nemec, Jachym"]
[Black "Cardozo Munar, Carlos Eduardo"]
[WhiteFideId "23716525"]
[BlackFideId "4409477"]
[WhiteElo "2347"]
[BlackElo "2067"]
[Result "1/2-1/2"]
[Round "9"]
[TimeControl "180+2"]
[Date "2023.06.06"]
[WhiteClock "0:00:47"]
[BlackClock "0:00:35"]
[Board "90"]

1. b3 {[%clk 0:03:00]}  Nf6 {[%clk 0:02:58]} 2. Nf3 {[%clk 0:03:00]}  g6 {[%clk 0:02:56]} 3. Bb2 {[%clk 0:02:59]}  Bg7 {[%clk 0:02:57]} 4. g3 {[%clk 0:02:59]}  O-O {[%clk 0:02:56]} 5. d4 {[%clk 0:02:59]}  c6 {[%clk 0:02:53]} 6. Bg2 {[%clk 0:02:58]}  d5 {[%clk 0:02:50]} 7. O-O {[%clk 0:02:58]}  Re8 {[%clk 0:02:46]} 8. c4 {[%clk 0:02:57]}  Nbd7 {[%clk 0:02:47]} 9. Nbd2 {[%clk 0:02:55]}  e5 {[%clk 0:02:46]} 10. dxe5 {[%clk 0:02:53]}  Ng4 {[%clk 0:02:47]} 11. Qc2 {[%clk 0:02:52]}  dxc4 {[%clk 0:02:44]} 12. Nxc4 {[%clk 0:02:52]}  Qe7 {[%clk 0:02:43]} 13. Nd6 {[%clk 0:02:49]}  Rf8 {[%clk 0:02:38]} 14. Rfd1 {[%clk 0:02:46]}  Ngxe5 {[%clk 0:02:35]} 15. Nxc8 {[%clk 0:02:34]}  Raxc8 {[%clk 0:02:34]} 16. Nd4 {[%clk 0:02:34]}  Rfe8 {[%clk 0:02:28]} 17. e3 {[%clk 0:02:33]}  Nf6 {[%clk 0:02:27]} 18. h3 {[%clk 0:02:30]}  a6 {[%clk 0:02:26]} 19. a3 {[%clk 0:02:29]}  Rcd8 {[%clk 0:02:26]} 20. b4 {[%clk 0:02:29]}  Ned7 {[%clk 0:02:13]} 21. Nb3 {[%clk 0:02:26]}  Nb6 {[%clk 0:02:12]} 22. Nc5 {[%clk 0:02:24]}  Nfd5 {[%clk 0:02:12]} 23. Bxg7 {[%clk 0:02:23]}  Kxg7 {[%clk 0:02:13]} 24. Qb2+ {[%clk 0:02:15]}  Kg8 {[%clk 0:02:10]} 25. Rd4 {[%clk 0:02:08]}  Nf6 {[%clk 0:02:04]} 26. Rad1 {[%clk 0:02:07]}  Rxd4 {[%clk 0:02:04]} 27. Rxd4 {[%clk 0:02:07]}  h5 {[%clk 0:01:57]} 28. Qd2 {[%clk 0:01:44]}  Nbd5 {[%clk 0:01:42]} 29. e4 {[%clk 0:01:43]}  Nc7 {[%clk 0:01:33]} 30. f4 {[%clk 0:01:30]}  Ne6 {[%clk 0:01:32]} 31. Nxe6 {[%clk 0:01:25]}  Qxe6 {[%clk 0:01:33]} 32. Kh2 {[%clk 0:01:24]}  Qb3 {[%clk 0:01:30]} 33. e5 {[%clk 0:01:20]}  Nd5 {[%clk 0:01:23]} 34. Bxd5 {[%clk 0:01:19]}  cxd5 {[%clk 0:01:24]} 35. Rxd5 {[%clk 0:01:20]}  Qxa3 {[%clk 0:01:23]} 36. Rd3 {[%clk 0:01:09]}  Qa4 {[%clk 0:01:19]} 37. h4 {[%clk 0:01:03]}  Qc6 {[%clk 0:01:10]} 38. Rd6 {[%clk 0:01:00]}  Qc4 {[%clk 0:01:07]} 39. Rd4 {[%clk 0:00:56]}  Qc6 {[%clk 0:01:07]} 40. Qd3 {[%clk 0:00:47]}  Rc8 {[%clk 0:01:00]} 41. Rd8+ {[%clk 0:00:46]}  Rxd8 {[%clk 0:00:56]} 42. Qxd8+ {[%clk 0:00:47]}  Kg7 {[%clk 0:00:55]} 43. Qe7 {[%clk 0:00:47]}  Qe4 {[%clk 0:00:44]} 44. Qf6+ {[%clk 0:00:46]}  Kg8 {[%clk 0:00:44]} 45. Qd8+ {[%clk 0:00:46]}  Kg7 {[%clk 0:00:40]} 46. Qe7 {[%clk 0:00:47]}  Qe2+ {[%clk 0:00:33]} 47. Kh3 {[%clk 0:00:46]}  Qg4+ {[%clk 0:00:33]} 48. Kh2 {[%clk 0:00:46]}  Qe2+ {[%clk 0:00:34]} 49. Kh3 {[%clk 0:00:47]}  Qg4+ {[%clk 0:00:34]} 50. Kh2 {[%clk 0:00:47]}  Qe2+ {[%clk 0:00:35]} 1/2-1/2


[Site "https://www.chess.com"]

[Event "Titled Tuesday Blitz June 6 Early 2023"]
[White "mohsengabr2002"]
[Black "Mrithyunjay Mahadevan"]
[BlackFideId "45003521"]
[WhiteElo "2263"]
[BlackElo "1626"]
[Result "0-1"]
[Round "9"]
[TimeControl "180+2"]
[Date "2023.06.06"]
[WhiteClock "0:00:02"]
[BlackClock "0:01:03"]
[Board "92"]

1. e4 {[%clk 0:02:34]}  c5 {[%clk 0:02:57]} 2. d3 {[%clk 0:02:34]}  Nc6 {[%clk 0:02:56]} 3. Nd2 {[%clk 0:02:35]}  g6 {[%clk 0:02:56]} 4. g3 {[%clk 0:02:35]}  Bg7 {[%clk 0:02:57]} 5. Bg2 {[%clk 0:02:36]}  e5 {[%clk 0:02:57]} 6. Ngf3 {[%clk 0:02:35]}  Nge7 {[%clk 0:02:57]} 7. O-O {[%clk 0:02:35]}  O-O {[%clk 0:02:58]} 8. c3 {[%clk 0:02:36]}  d5 {[%clk 0:02:58]} 9. exd5 {[%clk 0:02:33]}  Nxd5 {[%clk 0:02:59]} 10. Qb3 {[%clk 0:02:33]}  Nb6 {[%clk 0:02:55]} 11. Qc2 {[%clk 0:02:28]}  Bf5 {[%clk 0:02:55]} 12. Ne4 {[%clk 0:02:12]}  c4 {[%clk 0:02:48]} 13. dxc4 {[%clk 0:02:11]}  Nxc4 {[%clk 0:02:47]} 14. Nh4 {[%clk 0:02:09]}  Be6 {[%clk 0:02:46]} 15. Rd1 {[%clk 0:02:08]}  Qe7 {[%clk 0:02:41]} 16. Ng5 {[%clk 0:02:06]}  Rad8 {[%clk 0:02:29]} 17. Nxe6 {[%clk 0:02:04]}  Qxe6 {[%clk 0:02:30]} 18. Rxd8 {[%clk 0:01:54]}  Rxd8 {[%clk 0:02:28]} 19. b3 {[%clk 0:01:54]}  Nb6 {[%clk 0:02:24]} 20. Nf3 {[%clk 0:01:48]}  h6 {[%clk 0:02:21]} 21. Nd2 {[%clk 0:01:38]}  f5 {[%clk 0:02:19]} 22. Nf1 {[%clk 0:01:38]}  e4 {[%clk 0:02:18]} 23. Ne3 {[%clk 0:01:34]}  Nb4 {[%clk 0:02:15]} 24. Qb2 {[%clk 0:01:24]}  Nd3 {[%clk 0:02:11]} 25. Qc2 {[%clk 0:01:24]}  Ne1 {[%clk 0:01:54]} 26. Qb2 {[%clk 0:01:20]}  Qd6 {[%clk 0:01:51]} 27. Bf1 {[%clk 0:01:07]}  Nf3+ {[%clk 0:01:44]} 28. Kg2 {[%clk 0:01:07]}  Qc6 {[%clk 0:01:41]} 29. Nc4 {[%clk 0:01:03]}  Nxc4 {[%clk 0:01:35]} 30. Bxc4+ {[%clk 0:01:02]}  Kh7 {[%clk 0:01:36]} 31. a4 {[%clk 0:00:59]}  a6 {[%clk 0:01:35]} 32. a5 {[%clk 0:00:57]}  Rd1 {[%clk 0:01:35]} 33. Be3 {[%clk 0:00:55]}  Ne1+ {[%clk 0:01:28]} 34. Kh3 {[%clk 0:00:54]}  f4 {[%clk 0:01:13]} 35. Rxd1 {[%clk 0:00:41]}  Qc8+ {[%clk 0:01:12]} 36. g4 {[%clk 0:00:41]}  h5 {[%clk 0:01:11]} 37. f3 {[%clk 0:00:26]}  exf3 {[%clk 0:01:08]} 38. Bg8+ {[%clk 0:00:02]}  Kh8 {[%clk 0:01:03]} 0-1


[Site "https://www.chess.com"]

[Event "Titled Tuesday Blitz June 6 Early 2023"]
[White "Gomez Ledo, Roberto Carlos"]
[Black "Afanasieva, Alexandra"]
[WhiteFideId "3507076"]
[BlackFideId "34126926"]
[WhiteElo "2378"]
[BlackElo "1736"]
[Result "1-0"]
[Round "9"]
[TimeControl "180+2"]
[Date "2023.06.06"]
[WhiteClock "0:01:34"]
[BlackClock "0:00:03"]
[Board "93"]

1. d4 {[%clk 0:03:00]}  Nf6 {[%clk 0:02:59]} 2. Bf4 {[%clk 0:02:59]}  b6 {[%clk 0:02:59]} 3. e3 {[%clk 0:02:59]}  Bb7 {[%clk 0:02:59]} 4. h3 {[%clk 0:02:58]}  e6 {[%clk 0:02:59]} 5. Nf3 {[%clk 0:02:58]}  Nh5 {[%clk 0:02:57]} 6. Bh2 {[%clk 0:02:57]}  Be7 {[%clk 0:02:52]} 7. a4 {[%clk 0:02:56]}  a5 {[%clk 0:02:50]} 8. Nbd2 {[%clk 0:02:55]}  Nf6 {[%clk 0:02:41]} 9. Be2 {[%clk 0:02:53]}  O-O {[%clk 0:02:41]} 10. O-O {[%clk 0:02:54]}  c5 {[%clk 0:02:38]} 11. c3 {[%clk 0:02:49]}  d5 {[%clk 0:02:36]} 12. Bb5 {[%clk 0:02:45]}  Bc6 {[%clk 0:02:17]} 13. Ne5 {[%clk 0:02:44]}  Bxb5 {[%clk 0:02:16]} 14. axb5 {[%clk 0:02:45]}  Nbd7 {[%clk 0:02:16]} 15. Nc6 {[%clk 0:02:44]}  Qe8 {[%clk 0:02:15]} 16. Qe2 {[%clk 0:02:38]}  Ne4 {[%clk 0:02:02]} 17. Nxe4 {[%clk 0:02:32]}  dxe4 {[%clk 0:02:03]} 18. Qc4 {[%clk 0:02:29]}  Nf6 {[%clk 0:01:47]} 19. Rfd1 {[%clk 0:02:24]}  Nd5 {[%clk 0:01:42]} 20. dxc5 {[%clk 0:02:22]}  Bxc5 {[%clk 0:01:38]} 21. Qxe4 {[%clk 0:02:22]}  f5 {[%clk 0:01:31]} 22. Qc4 {[%clk 0:02:18]}  f4 {[%clk 0:01:11]} 23. e4 {[%clk 0:02:13]}  Nf6 {[%clk 0:00:59]} 24. Bxf4 {[%clk 0:02:07]}  Nh5 {[%clk 0:00:33]} 25. Be3 {[%clk 0:02:05]}  Bxe3 {[%clk 0:00:29]} 26. fxe3 {[%clk 0:02:06]}  Ng3 {[%clk 0:00:29]} 27. Rd2 {[%clk 0:02:00]}  Rc8 {[%clk 0:00:17]} 28. Rad1 {[%clk 0:01:53]}  Qf7 {[%clk 0:00:13]} 29. Kh2 {[%clk 0:01:41]}  Qc7 {[%clk 0:00:03]} 30. Qxe6+ {[%clk 0:01:38]}  Kh8 {[%clk 0:00:03]} 31. Qe5 {[%clk 0:01:34]} 1-0


[Site "https://www.chess.com"]